bitfinex-derivatives/quotes_BTCF0:USTF0_20250308
["timestamp","ask_amount","ask_price","bid_price","bid_amount"]
[1741441183856,0.96812472,86353.0,86352.0,1.038e-05]
[1741441185566,0.99962472,86353.0,86352.0,1.038e-05]
[1741441191075,1.36042472,86353.0,86352.0,1.038e-05]
[1741441192269,0.1158447,86338.0,86337.0,0.0638]
[1741441192465,0.5634047,86338.0,86337.0,0.0638]
[1741441193077,0.57664529,86338.0,86337.0,0.0638]
[1741441193575,0.58830239,86338.0,86337.0,0.0638]
[1741441194571,0.57998767,86338.0,86337.0,0.0638]
[1741441197265,0.59738768,86338.0,86337.0,0.0638]
[1741441198281,0.80983199,86338.0,86337.0,0.0638]
[1741441199280,1.53999199,86338.0,86337.0,0.0638]
[1741441199876,1.54849146,86338.0,86337.0,0.0638]
[1741441202683,1.39237577,86338.0,86337.0,0.0638]
[1741441203079,1.39237577,86338.0,86337.0,0.033]
[1741441205088,1.26483397,86338.0,86337.0,0.148846]
[1741441205287,0.90403397,86338.0,86337.0,0.509646]
[1741441205691,0.8991081,86338.0,86337.0,0.509646]
[1741441205989,0.8991081,86338.0,86337.0,0.541546]
[1741441206290,0.8991081,86338.0,86337.0,0.55293292]
[1741441206480,0.8991081,86338.0,86337.0,0.541546]
[1741441207083,0.8991081,86338.0,86337.0,0.5529977]
[1741441207793,0.90398898,86338.0,86337.0,0.5529977]
[1741441208395,0.8991081,86338.0,86337.0,0.5529977]
[1741441208583,1.0149528,86338.0,86337.0,0.5529977]
[1741441209188,0.8991081,86338.0,86337.0,0.5529977]
[1741441209493,1.0149528,86338.0,86337.0,0.5529977]
[1741441211391,0.9282328,86338.0,86337.0,0.5529977]
[1741441212098,0.87190418,86338.0,86337.0,0.5529977]
[1741441212294,0.75605948,86338.0,86337.0,0.5529977]
[1741441213692,0.75605948,86338.0,86337.0,0.541546]
[1741441213898,0.87190418,86338.0,86337.0,0.541546]
[1741441214398,0.87190418,86338.0,86337.0,0.5528875]
[1741441215299,0.75605948,86338.0,86337.0,0.5528875]
[1741441216086,0.73865947,86338.0,86337.0,0.5528875]
[1741441217000,0.75605948,86338.0,86337.0,0.5528875]
[1741441217296,0.87190418,86338.0,86337.0,0.4257]
[1741441217599,0.87190418,86338.0,86337.0,0.541546]
[1741441217809,0.90360418,86338.0,86337.0,0.541546]
[1741441218004,0.90360418,86338.0,86337.0,0.572946]
[1741441218390,0.17344418,86338.0,86337.0,0.4571]
[1741441218702,0.17344418,86338.0,86337.0,0.572946]
[1741441219300,0.20374418,86338.0,86337.0,0.572946]
[1741441219897,0.20374418,86338.0,86337.0,0.212146]
[1741441221002,0.20863448,86338.0,86337.0,0.212146]
[1741441224299,0.20374418,86338.0,86337.0,0.212146]
[1741441225315,0.20374418,86338.0,86337.0,0.0963]
[1741441225503,0.20374418,86338.0,86337.0,0.212146]
[1741441225804,0.20374418,86338.0,86337.0,0.0963]
[1741441226005,0.20374418,86338.0,86337.0,0.0644]
[1741441226304,0.5694453,86338.0,86337.0,0.033]
[1741441226501,0.5694453,86338.0,86332.0,0.0305]
[1741441226502,0.4536006,86338.0,86332.0,0.0305]
[1741441226700,0.1158527,86332.0,86331.0,0.0316]
[1741441227111,0.0603,86333.0,86331.0,0.0316]
[1741441227293,0.1761527,86333.0,86332.0,0.0305]
[1741441227693,0.1761527,86333.0,86332.0,0.0614]
[1741441228006,0.18105382,86333.0,86332.0,0.0614]
[1741441228409,0.18105382,86333.0,86332.0,0.0309]
[1741441228604,0.06520112,86333.0,86330.0,0.0309]
[1741441228800,0.115854,86331.0,86330.0,0.0618]
[1741441229302,0.12075512,86331.0,86330.0,0.0618]
[1741441230116,0.48155512,86331.0,86330.0,0.0309]
[1741441231815,0.48155512,86331.0,86330.0,0.0612]
[1741441232010,0.48155512,86331.0,86330.0,0.0309]
[1741441232214,0.57845512,86331.0,86330.0,0.0309]
[1741441232517,0.1158554,86330.0,86329.0,0.00017364]
[1741441233009,0.18595652,86330.0,86329.0,0.00017364]
[1741441235610,0.3981957,86330.0,86329.0,0.00017364]
[1741441235814,0.3981957,86330.0,86329.0,2.161e-05]
[1741441236711,0.41559571,86330.0,86329.0,2.161e-05]
[1741441237319,0.55299918,86330.0,86329.0,2.161e-05]
[1741441238626,0.3971109,86330.0,86329.0,2.161e-05]
[1741441239419,0.39912775,86330.0,86329.0,2.161e-05]
[1741441239917,0.3971109,86330.0,86329.0,2.161e-05]
[1741441240217,0.39912775,86330.0,86329.0,2.161e-05]
[1741441241925,0.39912775,86330.0,86300.0,0.1]
[1741441241926,0.1158943,86301.0,86300.0,0.1]
[1741441242118,1.2936143,86301.0,86300.0,0.1]
[1741441242321,0.81692,86301.0,86300.0,0.1]
[1741441242513,0.86847543,86301.0,86300.0,0.1]
[1741441242821,1.09091049,86301.0,86300.0,0.1634]
[1741441243217,1.11790937,86301.0,86300.0,0.1634]
[1741441243417,1.15010937,86301.0,86300.0,0.1634]
[1741441243925,1.01431431,86301.0,86300.0,0.1634]
[1741441244815,1.04541431,86301.0,86300.0,0.1634]
[1741441245123,1.01431431,86301.0,86300.0,0.1634]
[1741441248019,1.01431431,86301.0,86300.0,0.1328]
[1741441248020,1.01918529,86301.0,86300.0,0.1328]
[1741441250326,0.95508529,86301.0,86300.0,0.1328]
[1741441250725,0.98728529,86301.0,86300.0,0.1328]
[1741441250925,1.02038529,86301.0,86300.0,0.1328]
[1741441252629,1.15872882,86301.0,86300.0,0.1328]
[1741441256030,1.14956878,86301.0,86300.0,0.1328]
[1741441256226,1.16696879,86301.0,86300.0,0.1328]
[1741441256435,1.02862526,86301.0,86300.0,0.1328]
[1741441259038,0.99552526,86301.0,86300.0,0.1328]
[1741441259336,1.02722526,86301.0,86300.0,0.1328]
[1741441260920,0.99552526,86301.0,86300.0,0.1328]
[1741441261324,1.02822526,86301.0,86300.0,0.1328]
[1741441262428,0.99552526,86301.0,86300.0,0.1328]
[1741441263028,1.02822526,86301.0,86300.0,0.1328]
[1741441263938,0.84739096,86301.0,86300.0,0.1328]
[1741441264130,0.96328526,86301.0,86300.0,0.2486957]
[1741441264441,0.96328526,86301.0,86300.0,0.1328]
[1741441264634,1.01965338,86301.0,86300.0,0.1328]
[1741441266440,1.08025338,86301.0,86300.0,0.1328]
[1741441267234,0.99365338,86301.0,86300.0,0.1328]
[1741441267530,1.08957781,86301.0,86300.0,0.1328]
[1741441268138,1.08025338,86301.0,86300.0,0.1328]
[1741441268637,1.08025338,86301.0,86300.0,0.0072937]
[1741441270138,1.01965338,86301.0,86300.0,0.0072937]
[1741441270634,0.81715908,86301.0,86300.0,0.0072937]
[1741441270837,0.90375908,86301.0,86300.0,0.1231894]
[1741441271139,1.01965338,86301.0,86300.0,0.1231894]
[1741441272841,1.01141341,86301.0,86300.0,0.1231894]
[1741441274038,0.89551911,86301.0,86300.0,0.1231894]
[1741441274241,1.01141341,86301.0,86300.0,0.1231894]
[1741441274535,0.80891911,86301.0,86300.0,0.1231894]
[1741441275943,0.9074134,86301.0,86300.0,0.1231894]
[1741441276736,0.92481341,86301.0,86300.0,0.1231894]
[1741441278344,0.86844529,86301.0,86300.0,0.1231894]
[1741441281041,0.13816529,86301.0,86300.0,0.1231894]
[1741441281646,0.02227099,86301.0,86300.0,0.1231894]
[1741441282751,0.02227099,86301.0,86300.0,0.1542894]
[1741441283138,0.01740001,86301.0,86300.0,0.1542894]
[1741441284150,0.02247136,86301.0,86300.0,0.1542894]
[1741441285366,0.08737136,86301.0,86300.0,0.1542894]
[1741441285743,0.05407136,86301.0,86300.0,0.1542894]
[1741441285945,0.06234294,86301.0,86300.0,0.1542894]
[1741441287048,0.16644327,86301.0,86300.0,0.1542894]
[1741441288552,0.13484327,86301.0,86300.0,0.1542894]
[1741441288755,0.10917168,86301.0,86300.0,0.3042894]
[1741441288945,0.10917168,86301.0,86300.0,0.1542894]
[1741441289553,0.10410033,86301.0,86300.0,0.1542894]
[1741441291045,0.01740001,86302.0,86301.0,0.1158943]
[1741441291552,0.01740001,86302.0,86301.0,0.1801943]
[1741441292153,0.02243861,86302.0,86301.0,0.1801943]
[1741441293354,0.05443861,86302.0,86301.0,0.1801943]
[1741441293551,0.20083161,86302.0,86301.0,0.1801943]
[1741441293960,0.23283161,86302.0,86301.0,0.1801943]
[1741441294859,0.11693861,86302.0,86301.0,0.1801943]
[1741441295752,0.12524014,86302.0,86301.0,0.1801943]
[1741441295953,0.10784013,86302.0,86301.0,0.1801943]
[1741441296549,0.0995386,86302.0,86301.0,0.1801943]
[1741441296753,0.11693861,86302.0,86301.0,0.1801943]
[1741441299151,0.11693861,86302.0,86301.0,0.1473943]
[1741441300254,0.11693861,86302.0,86301.0,0.1158943]
[1741441301165,0.11693861,86302.0,86301.0,0.1490943]
[1741441301968,0.11190001,86302.0,86301.0,0.1490943]
[1741441302155,0.11695446,86302.0,86301.0,0.1490943]
[1741441304760,0.23284746,86302.0,86301.0,0.1490943]
[1741441305270,0.23284746,86302.0,86301.0,0.1158943]
[1741441306370,0.11695446,86302.0,86301.0,0.1158943]
[1741441307370,0.08495446,86302.0,86301.0,0.1158943]
[1741441307574,0.02245446,86302.0,86301.0,0.1158943]
[1741441307873,0.25226604,86302.0,86301.0,0.1158943]
[1741441308064,0.25226604,86302.0,86301.0,0.1473943]
[1741441309263,0.25226604,86302.0,86301.0,0.1780943]
[1741441310278,0.24721159,86302.0,86301.0,0.1780943]
[1741441312576,0.01740001,86302.0,86301.0,0.1780943]
[1741441314971,0.13896869,86303.0,86301.0,0.3280943]
[1741441315173,0.13896869,86303.0,86302.0,0.476693]
[1741441315679,0.13896869,86303.0,86302.0,0.540393]
[1741441316974,0.10418856,86305.0,86302.0,0.4245]
[1741441317181,0.13698856,86305.0,86304.0,0.1158903]
[1741441317777,0.25287756,86305.0,86304.0,0.1158903]
[1741441318365,0.1158916,86303.0,86302.0,0.36244]
[1741441318570,0.1158916,86303.0,86302.0,0.476693]
[1741441318770,0.12082246,86303.0,86302.0,0.476693]
[1741441319376,0.13260974,86303.0,86302.0,0.3608]
[1741441320671,0.13260974,86303.0,86302.0,0.476693]
[1741441321074,0.13260974,86303.0,86302.0,0.3608]
[1741441321670,0.1158984,86298.0,86297.0,0.20713474]
[1741441322072,0.1158984,86298.0,86292.0,0.115906]
[1741441322073,0.115904,86294.0,86292.0,0.115906]
[1741441322274,0.0317,86293.0,86292.0,0.115906]
[1741441322483,0.0639,86293.0,86292.0,0.115906]
[1741441322779,0.06883086,86293.0,86289.0,0.0579551]
[1741441322991,0.1159091,86291.0,86290.0,0.115907]
[1741441323194,0.2023891,86291.0,86290.0,0.115907]
[1741441323393,0.20731996,86291.0,86290.0,0.115907]
[1741441323596,0.1159109,86289.0,86288.0,0.1159116]
[1741441323987,0.12084176,86289.0,86288.0,0.1159116]
[1741441324185,0.18384176,86289.0,86288.0,0.1159116]
[1741441325395,0.18384176,86289.0,86282.0,0.11765782]
[1741441325396,0.1159145,86286.0,86282.0,0.11765782]
[1741441325594,0.12084536,86286.0,86282.0,0.11765782]
[1741441325783,0.12084536,86286.0,86283.0,0.1159183]
[1741441325989,0.12084536,86286.0,86282.0,0.11765782]
[1741441325990,0.12084536,86286.0,86282.0,0.23357712]
[1741441326189,0.18264536,86286.0,86282.0,0.11765762]
[1741441326490,0.18264536,86286.0,86285.0,0.4767158]
[1741441326898,0.06673086,86286.0,86285.0,0.4767158]
[1741441327387,0.06673086,86286.0,86285.0,0.5419158]
[1741441329596,0.0618,86286.0,86285.0,0.5419158]
[1741441331899,0.06695342,86286.0,86285.0,0.5419158]
[1741441332600,0.17093253,86286.0,86285.0,0.5419158]
[1741441334194,0.16577911,86286.0,86285.0,0.5419158]
[1741441334996,0.1148966,86290.0,86285.0,0.426]
[1741441335198,0.09038978,86290.0,86289.0,0.4767104]
[1741441336095,0.05741086,86290.0,86289.0,0.5382104]
[1741441336296,0.19080966,86295.0,86294.0,0.1159037]
[1741441336494,0.17340965,86295.0,86294.0,0.4767037]
[1741441336905,0.19080966,86295.0,86294.0,0.4767037]
[1741441337092,0.19080966,86295.0,86294.0,0.5388037]
[1741441337093,0.13330241,86295.0,86294.0,0.5388037]
[1741441337300,0.13330241,86295.0,86294.0,0.5080037]
[1741441337700,0.13330241,86295.0,86294.0,0.4767037]
[1741441337896,0.16620241,86295.0,86294.0,0.4767037]
[1741441339698,0.05030001,86295.0,86294.0,0.4767037]
[1741441339895,0.05542798,86295.0,86294.0,0.4767037]
[1741441340096,0.17133038,86295.0,86294.0,0.3608]
[1741441340303,0.17133038,86295.0,86294.0,0.4767037]
[1741441340704,0.17133038,86295.0,86294.0,0.3608]
[1741441341217,0.17133038,86295.0,86289.0,0.36248]
[1741441341218,0.1159091,86290.0,86289.0,0.3608]
[1741441341519,0.2023491,86290.0,86289.0,0.3608]
[1741441341903,0.21573336,86290.0,86289.0,0.3608]
[1741441342103,0.28113336,86290.0,86289.0,0.3608]
[1741441342302,0.52602426,86290.0,86276.0,0.00173839]
[1741441342613,0.1159222,86283.0,86282.0,0.1159192]
[1741441343004,0.07808426,86283.0,86282.0,0.4767192]
[1741441343817,0.06982797,86283.0,86282.0,0.4767192]
[1741441344020,0.18574647,86283.0,86282.0,0.4767192]
[1741441344411,0.06982797,86283.0,86282.0,0.4767192]
[1741441345104,0.06982797,86283.0,86282.0,0.5726192]
[1741441346012,0.00512797,86283.0,86282.0,0.5726192]
[1741441346610,0.08644,86284.0,86283.0,0.1159185]
[1741441347009,0.08644,86284.0,86283.0,0.1776185]
[1741441347809,0.09174494,86284.0,86283.0,0.1776185]
[1741441348407,0.00530494,86284.0,86283.0,0.3276185]
[1741441348607,0.00017385,86292.0,86291.0,0.1159078]
[1741441348807,0.00017385,86292.0,86291.0,0.4767078]
[1741441349511,0.17340965,86293.0,86291.0,0.4767078]
[1741441349512,1e-08,86293.0,86291.0,0.6892078]
[1741441349716,0.20823632,86298.0,86297.0,0.1158997]
[1741441349917,0.20823632,86298.0,86297.0,0.4766997]
[1741441350716,0.20823632,86298.0,86297.0,0.5369997]
[1741441351613,0.17369693,86306.0,86305.0,0.115889]
[1741441351807,0.17369693,86306.0,86305.0,0.476689]
[1741441352514,0.17369693,86306.0,86305.0,0.537589]
[1741441352713,0.07605373,86306.0,86305.0,0.537589]
[1741441352913,0.16479612,86311.0,86310.0,0.1158822]
[1741441353111,0.16479612,86311.0,86310.0,0.48832152]
[1741441353317,0.16479612,86311.0,86310.0,0.58082152]
[1741441353517,0.12237252,86311.0,86310.0,0.58082152]
[1741441353724,0.24195353,86321.0,86320.0,0.1158688]
[1741441353918,0.16205028,86321.0,86320.0,0.4766688]
[1741441354725,0.16205028,86321.0,86320.0,0.5387688]
[1741441355522,0.12739828,86321.0,86320.0,0.6887688]
[1741441355933,0.12739828,86321.0,86320.0,0.5387688]
[1741441356124,0.00017385,86329.0,86326.0,0.1158608]
[1741441356639,0.00017385,86329.0,86328.0,0.1158581]
[1741441357116,0.00017385,86329.0,86328.0,0.1461581]
[1741441359025,0.03057385,86329.0,86328.0,0.1461581]
[1741441369132,0.03057385,86329.0,86328.0,0.5069581]
[1741441371027,0.01740001,86332.0,86331.0,0.115854]
[1741441372742,0.01740001,86332.0,86328.0,0.3927]
[1741441372941,0.0652,86331.0,86330.0,0.1777554]
[1741441373236,0.00017385,86340.0,86330.0,0.0619]
[1741441373545,0.0631,86339.0,86338.0,0.1158447]
[1741441373737,0.0631,86339.0,86338.0,0.4766447]
[1741441374132,0.0961,86339.0,86338.0,0.4766447]
[1741441375233,0.0961,86339.0,86338.0,0.48826942]
[1741441375642,0.2119433,86339.0,86338.0,0.48826942]
[1741441377237,0.22934331,86339.0,86338.0,0.48826942]
[1741441377740,0.11350001,86339.0,86338.0,0.48826942]
[1741441377933,0.0579234,86337.0,86336.0,0.1158468]
[1741441379444,0.11350001,86339.0,86334.0,0.0579244]
[1741441379642,0.0304,86336.0,86334.0,0.0579244]
[1741441379838,0.1468487,86335.0,86334.0,0.1737744]
[1741441380040,0.031,86335.0,86334.0,0.1737744]
[1741441380751,0.0614,86335.0,86330.0,0.00017374]
[1741441380947,0.0579256,86334.0,86333.0,0.11585]
[1741441381340,0.1209256,86334.0,86333.0,0.11585]
[1741441381653,0.063,86334.0,86333.0,0.11585]
[1741441384851,0.06788418,86334.0,86333.0,0.11585]
[1741441387153,0.06788418,86334.0,86333.0,0.14825]
[1741441388951,0.063,86334.0,86333.0,0.14825]
[1741441390860,0.06787435,86334.0,86333.0,0.14825]
[1741441391461,0.06787435,86334.0,86333.0,0.17995]
[1741441391960,0.063,86334.0,86333.0,0.17995]
[1741441393164,0.0304,86334.0,86333.0,0.17995]
[1741441393861,0.01740001,86339.0,86337.0,0.115846]
[1741441394049,0.01740001,86339.0,86338.0,0.5716447]
[1741441395558,0.1738513,86340.0,86339.0,0.1158433]
[1741441395765,0.1738513,86340.0,86339.0,0.1796433]
[1741441396566,0.00017385,86340.0,86339.0,0.1796433]
[1741441402066,0.13872565,86348.0,86347.0,0.1158326]
[1741441402467,0.13872565,86348.0,86347.0,0.4766326]
[1741441402968,0.13872565,86348.0,86347.0,0.5375326]
[1741441404865,0.13322771,86351.0,86350.0,0.1158286]
[1741441405167,0.01740001,86351.0,86350.0,0.1158286]
[1741441405573,0.13322721,86351.0,86350.0,0.1158286]
[1741441405773,0.01740001,86351.0,86350.0,0.1158286]
[1741441406178,0.13322721,86351.0,86350.0,0.1158286]
[1741441407469,0.1158326,86347.0,86346.0,0.3608]
[1741441407773,0.2020726,86347.0,86346.0,0.4766339]
[1741441408663,0.2020726,86347.0,86346.0,0.1158339]
[1741441409463,0.08624,86347.0,86346.0,0.1158339]
[1741441409771,0.11924,86348.0,86347.0,0.1158326]
[1741441409971,0.11924,86348.0,86347.0,0.1459326]
[1741441410172,0.11924,86348.0,86347.0,0.1776326]
[1741441411162,0.01740001,86351.0,86350.0,0.1158286]
[1741441412168,0.05030001,86351.0,86350.0,0.1158286]
[1741441412368,0.16612721,86351.0,86350.0,0.1158286]
[1741441412675,0.19842721,86351.0,86350.0,0.1158286]
[1741441413072,0.08260001,86351.0,86350.0,0.1158286]
[1741441414371,0.11540001,86351.0,86350.0,0.1158286]
[1741441415974,0.098,86351.0,86350.0,0.1158286]
[1741441416175,0.0651,86351.0,86350.0,0.1158286]
[1741441417475,0.08250001,86351.0,86350.0,0.1158286]
[1741441418870,0.08250001,86351.0,86350.0,0.4766286]
[1741441425480,0.05137079,86351.0,86350.0,0.4766286]
[1741441426683,0.05020001,86351.0,86350.0,0.4766286]
[1741441435391,0.03902841,86351.0,86350.0,0.4766286]
[1741441435981,0.0216284,86351.0,86350.0,0.4766286]
[1741441439078,0.03902841,86351.0,86350.0,0.4766286]
[1741441444291,0.00053929,86351.0,86350.0,0.4766286]
[1741441444790,0.01740001,86360.0,86350.0,0.4766286]
[1741441444791,0.14220371,86358.0,86357.0,0.1158192]
[1741441444989,0.14220371,86358.0,86357.0,0.4766192]
[1741441444990,0.13888944,86358.0,86357.0,0.4766192]
[1741441445389,0.13888944,86358.0,86357.0,0.5082192]
[1741441446711,0.13888944,86358.0,86357.0,0.519729]
[1741441447399,0.25470724,86358.0,86357.0,0.519729]
[1741441447595,0.13888944,86358.0,86357.0,0.519729]
[1741441450004,0.17068944,86358.0,86357.0,0.519729]
[1741441451305,0.0318,86358.0,86357.0,0.519729]
[1741441455193,0.1805178,86358.0,86357.0,0.0316]
[1741441455394,0.1804178,86358.0,86357.0,0.1474192]
[1741441455613,0.1804178,86358.0,86357.0,0.1158192]
[1741441456301,0.1158205,86356.0,86355.0,0.20765919]
[1741441456603,0.1158205,86356.0,86336.0,0.3608]
[1741441456604,0.1158232,86354.0,86353.0,0.20765919]
[1741441456809,0.4766232,86354.0,86353.0,0.20765919]
[1741441457308,0.5082232,86354.0,86353.0,0.20765919]
[1741441458496,0.5412232,86354.0,86353.0,0.20765919]
[1741441460195,0.5412232,86354.0,86353.0,0.20965919]
[1741441461506,0.80479045,86354.0,86353.0,0.0332]
[1741441461908,0.80479045,86354.0,86353.0,0.1490245]
[1741441465105,0.32816725,86354.0,86353.0,0.1490245]
[1741441465410,0.1753327,86354.0,86353.0,0.1490245]
[1741441465613,0.1423327,86354.0,86353.0,0.1606781]
[1741441466106,0.1423327,86354.0,86353.0,0.1937781]
[1741441466306,0.0563327,86354.0,86353.0,0.1937781]
[1741441468709,0.01740001,86355.0,86354.0,0.1158232]
[1741441468907,0.01740001,86355.0,86354.0,0.1472232]
[1741441469215,0.01740001,86357.0,86356.0,0.1158205]
[1741441469413,0.83403247,86359.0,86358.0,0.1158178]
[1741441469712,0.83403247,86359.0,86358.0,0.4766178]
[1741441470608,0.83403247,86359.0,86358.0,0.5396178]
[1741441472413,0.73,86359.0,86358.0,0.5396178]
[1741441473417,0.10403247,86362.0,86361.0,0.1158138]
[1741441474807,0.10503247,86362.0,86361.0,0.1158138]
[1741441476020,0.001,86362.0,86361.0,0.1158138]
[1741441476221,0.001,86362.0,86361.0,0.4766138]
[1741441488423,0.06417374,86366.0,86365.0,0.1158084]
[1741441489930,0.06617374,86366.0,86365.0,0.1158084]
[1741441499827,0.2048837,86366.0,86365.0,0.1158084]
[1741441504136,0.06617374,86366.0,86365.0,0.1158084]
[1741441506030,0.12871337,86368.0,86367.0,0.1158058]
[1741441506743,0.12871337,86368.0,86367.0,0.1469058]
[1741441507144,0.24451777,86368.0,86367.0,0.1158058]
[1741441507443,0.1188044,86368.0,86367.0,0.1158058]
[1741441509444,0.1158098,86364.0,86363.0,0.36244]
[1741441509638,0.2016098,86364.0,86363.0,0.4766111]
[1741441511843,0.2906098,86364.0,86363.0,0.4766111]
[1741441512234,0.1748,86364.0,86363.0,0.4766111]
[1741441513038,0.0662,86364.0,86363.0,0.4766111]
[1741441513340,0.0662,86364.0,86363.0,0.5409111]
[1741441514234,0.0672,86364.0,86363.0,0.5409111]
[1741441515246,0.25911969,86366.0,86363.0,0.4251]
[1741441515546,0.17331969,86366.0,86365.0,0.1158084]
[1741441516341,0.17331969,86366.0,86365.0,0.1794084]
[1741441516739,0.1907197,86366.0,86365.0,0.1794084]
[1741441517549,0.1917197,86366.0,86365.0,0.1794084]
[1741441518736,0.01740001,86366.0,86365.0,0.1794084]
[1741441518941,0.01940001,86366.0,86365.0,0.1794084]
[1741441534261,0.002,86366.0,86365.0,0.1794084]
[1741441539057,0.002,86366.0,86365.0,0.19218445]
[1741441539870,0.002,86366.0,86365.0,0.55298445]
[1741441541861,0.10415786,86370.0,86369.0,0.1158031]
[1741441542162,0.11101554,86398.0,86390.0,0.057887]
[1741441542364,0.0578624,86428.0,86371.0,0.5789995]
[1741441542365,0.01740001,86412.0,86403.0,0.0578785]
[1741441542672,0.49492704,86411.0,86410.0,0.1157481]
[1741441542871,0.51772704,86411.0,86410.0,0.12852415]
[1741441543064,0.51772704,86411.0,86410.0,0.1157481]
[1741441543368,0.51772704,86411.0,86410.0,0.12740748]
[1741441543670,0.51772704,86411.0,86410.0,0.15780748]
[1741441543969,0.51772704,86411.0,86410.0,0.17042107]
[1741441545265,0.87852704,86411.0,86410.0,0.01261359]
[1741441545463,0.1157575,86403.0,86391.0,0.1157734]
[1741441545765,0.48728048,86403.0,86394.0,0.1157688]
[1741441545965,0.48728048,86403.0,86392.0,0.0323]
[1741441546156,0.48728048,86403.0,86374.0,0.3608]
[1741441546157,0.5232752,86403.0,86374.0,0.3608]
[1741441546358,0.115787,86381.0,86380.0,0.1157844]
[1741441546968,0.3608,86381.0,86375.0,0.0323]
[1741441547169,0.1736889,86379.0,86378.0,0.1157897]
[1741441547556,0.1736889,86379.0,86378.0,0.1480897]
[1741441548769,0.0578952,86379.0,86378.0,0.1804897]
[1741441549273,0.0568952,86379.0,86378.0,0.1804897]
[1741441550167,0.0578952,86379.0,86378.0,0.1804897]
[1741441553660,0.0578952,86379.0,86378.0,0.0647]
[1741441553865,0.1157977,86373.0,86372.0,0.3608]
[1741441554068,0.1158017,86370.0,86360.0,0.27588803]
[1741441554274,0.2014017,86370.0,86363.0,0.23861602]
[1741441554475,0.21880171,86370.0,86363.0,0.23861602]
[1741441554671,0.35411194,86370.0,86363.0,0.23861602]
[1741441554869,0.35411194,86370.0,86356.0,0.1158196]
[1741441554870,0.36545981,86370.0,86366.0,0.20691602]
[1741441555172,0.1158058,86367.0,86366.0,0.20691602]
[1741441555676,0.13320581,86367.0,86366.0,0.20691602]
[1741441556069,0.1158058,86367.0,86366.0,0.20691602]
[1741441556583,0.13320581,86367.0,86366.0,0.20691602]
[1741441558572,0.1158098,86364.0,86363.0,0.0635]
[1741441559081,0.1138098,86364.0,86363.0,0.0317]
[1741441559979,0.1366098,86364.0,86363.0,0.0347]
[1741441560369,0.1366098,86364.0,86363.0,0.1505111]
[1741441560970,0.032,86365.0,86363.0,0.1505111]
[1741441561166,0.1478098,86365.0,86364.0,0.1158098]
[1741441561370,0.1478098,86365.0,86364.0,0.1473098]
[1741441561575,0.1478098,86365.0,86364.0,0.1785098]
[1741441562180,0.1478098,86365.0,86364.0,0.0627]
[1741441562372,0.1705098,86365.0,86364.0,0.0627]
[1741441562579,0.1705098,86365.0,86364.0,0.1785098]
[1741441564684,0.1705098,86365.0,86364.0,0.0627]
[1741441565084,0.1478098,86365.0,86364.0,0.1785098]
[1741441565485,0.1706098,86365.0,86364.0,0.1785098]
[1741441566183,0.1706098,86365.0,86364.0,0.1805098]
[1741441566675,0.1706098,86365.0,86364.0,0.0647]
[1741441570283,0.1706098,86365.0,86364.0,0.1805098]
[1741441570786,0.1706098,86365.0,86364.0,0.0647]
[1741441571275,0.1706098,86365.0,86364.0,0.1805098]
[1741441571477,0.1706098,86365.0,86364.0,0.0647]
[1741441573185,0.1478098,86365.0,86364.0,0.0647]
[1741441573689,0.1478098,86365.0,86364.0,0.1805098]
[1741441573986,0.1158098,86365.0,86364.0,0.1805098]
[1741441576187,0.13320981,86365.0,86364.0,0.1805098]
[1741441576381,0.1158098,86365.0,86364.0,0.1805098]
[1741441576785,0.13320981,86365.0,86364.0,0.1805098]
[1741441577681,0.13320981,86365.0,86364.0,0.1785098]
[1741441577880,0.13320981,86365.0,86364.0,0.1815098]
[1741441578985,0.13320981,86365.0,86364.0,0.0657]
[1741441579382,0.13320981,86365.0,86364.0,0.1815098]
[1741441579589,0.16370981,86365.0,86364.0,0.1815098]
[1741441580289,0.16370981,86365.0,86364.0,0.1805098]
[1741441581192,0.16370981,86365.0,86364.0,0.0647]
[1741441581586,0.16370981,86365.0,86364.0,0.0332]
[1741441581799,0.16370981,86365.0,86358.0,0.00017362]
[1741441581800,0.0579073,86361.0,86358.0,0.00017362]
[1741441581982,0.0579073,86361.0,86346.0,0.70566003]
[1741441581983,0.3608,86359.0,86352.0,0.0306]
[1741441582183,0.1158205,86356.0,86352.0,0.0306]
[1741441582486,0.2013405,86356.0,86352.0,0.0306]
[1741441582884,0.203995,86356.0,86352.0,0.0306]
[1741441583597,0.1158259,86352.0,86347.0,0.00017362]
[1741441583785,0.1158259,86352.0,86348.0,0.0301]
[1741441583985,0.25180813,86352.0,86348.0,0.0301]
[1741441584285,0.24680813,86352.0,86348.0,0.0301]
[1741441584481,0.27940813,86352.0,86348.0,0.0301]
[1741441584682,0.49710813,86352.0,86347.0,0.00017362]
[1741441584877,0.49710813,86352.0,86346.0,0.34486003]
[1741441584878,0.0579147,86350.0,86346.0,0.34486003]
[1741441585083,0.4766326,86347.0,86346.0,0.34486003]
[1741441585277,0.4736326,86347.0,86346.0,0.34486003]
[1741441585493,0.6903326,86347.0,86346.0,0.34486003]
[1741441585789,0.6903326,86347.0,86342.0,0.0615]
[1741441585790,0.1158379,86343.0,86342.0,0.0615]
[1741441585988,0.1158379,86343.0,86340.0,0.20756379]
[1741441585989,0.1158406,86341.0,86340.0,0.20756379]
[1741441586182,0.113846,86337.0,86336.0,0.27675172]
[1741441586384,0.474646,86337.0,86336.0,0.27675172]
[1741441586786,0.84261908,86337.0,86336.0,0.07194064]
[1741441586988,0.72351908,86337.0,86336.0,0.07194064]
[1741441587188,0.75561908,86337.0,86336.0,0.07194064]
[1741441587597,0.75161908,86337.0,86336.0,0.07194064]
[1741441588294,0.1158527,86332.0,86331.0,0.25114863]
[1741441588489,1.2066927,86332.0,86331.0,0.25114863]
[1741441588687,1.70749457,86332.0,86331.0,0.25114863]
[1741441588885,1.70749457,86332.0,86331.0,0.04358484]
[1741441589096,1.77111133,86332.0,86331.0,0.04358484]
[1741441589306,1.77011133,86332.0,86331.0,0.04358484]
[1741441589492,1.77242796,86332.0,86331.0,4e-08]
[1741441589697,0.1158594,86327.0,86326.0,0.40358765]
[1741441589883,0.5621794,86327.0,86326.0,0.36875565]
[1741441590193,0.1158634,86324.0,86323.0,0.00017373]
[1741441590400,0.4958634,86324.0,86323.0,0.00017373]
[1741441590693,0.77896527,86324.0,86307.0,0.065]
[1741441590898,0.4766849,86308.0,86307.0,0.065]
[1741441591089,0.5622049,86308.0,86307.0,0.065]
[1741441591291,0.56498559,86308.0,86307.0,0.065]
[1741441591686,0.62938559,86308.0,86307.0,0.065]
[1741441592790,0.1158943,86301.0,86299.0,0.00011629]
[1741441592997,0.69923448,86301.0,86300.0,0.1322]
[1741441593191,0.83621453,86301.0,86300.0,0.1322]
[1741441593383,0.85361454,86301.0,86300.0,0.1322]
[1741441593898,0.85563192,86301.0,86300.0,0.1322]